[Event "Najdorf Memorial-A 2022"]
[Site "Warsaw"]
[Date "2022.07.11"]
[Round "3.14"]
[White "Lee, Hyuk"]
[Black "Adamski, Jan"]
[Result "1-0"]
[ECO "B23"]
[WhiteElo "1880"]
[BlackElo "2136"]
[Annotator "ChessBase"]
[PlyCount "108"]
[EventDate "2022.07.09"]
[EventType "swiss"]
[EventCountry "POL"]
[SourceTitle "playchess.com"]
[Source "ChessBase"]
[SourceQuality "1"]
[TimeControl "40/5400+30:1800+30"]

1. e4 {[%emt 0:00:03]} c5 {[%emt 0:01:36]} 2. Nc3 {[%emt 0:00:15]} e6 {[%emt 0:00:52]} 3. Nf3 {[%emt 0:00:11]} a6 {[%emt 0:04:50]} 4. g3 {[%emt 0:00:27]} d6 {[%emt 0:01:41]} 5. Bg2 {[%emt 0:00:05]} Nc6 {[%emt 0:03:43]} 6. O-O {[%emt 0:00:07]} Be7 {[%emt 0:03:36]} 7. d4 {[%emt 0:00:09]} cxd4 {[%emt 0:00:08]} 8. Nxd4 {[%emt 0:00:06]} Qc7 {[%emt 0:05:26]} 9. Re1 {[%emt 0:03:46]} Bd7 {[%emt 0:00:58]} 10. a4 {[%emt 0:04:25]} Nf6 {[%emt 0:02:28]} 11. Nxc6 {[%emt 0:00:39]} Bxc6 {[%emt 0:00:44]} 12. a5 {[%emt 0:00:24]} b5 {[%emt 0:03:38]} 13. axb6 {[%emt 0:04:02]} Qxb6 {[%emt 0:00:21]} 14. Ra2 {[%emt 0:00:53]} O-O {[%emt 0:00:40]} 15. Nd5 {[%emt 0:04:20]} exd5 {[%emt 0:11:24]} 16. exd5 {[%emt 0:00:41]} Nxd5 {[%emt 0:02:49]} 17. Bxd5 {[%emt 0:00:07]} Bf6 {[%emt 0:05:51]} 18. Be3 {[%emt 0:04:02]} Qb7 {[%emt 0:01:31]} 19. Bxc6 {[%emt 0:03:14]} Qxc6 {[%emt 0:00:02]} 20. c3 {[%emt 0:05:22]} Rfe8 {[%emt 0:10:52]} 21. Re2 {[%emt 0:04:01]} a5 {[%emt 0:12:31]} 22. Rd2 {[%emt 0:06:52]} Be5 {[%emt 0:01:10]} 23. Qa4 {[%emt 0:02:48]} Qf3 {[%emt 0:02:34]} 24. Qc4 {[%emt 0:03:14]} h5 {[%emt 0:07:01]} 25. Qd5 {[%emt 0:06:46]} Qg4 {[%emt 0:02:13]} 26. Kg2 {[%emt 0:19:32]} Qg6 {[%emt 0:00:57]} 27. Ra4 {[%emt 0:04:14]} Qb1 {[%emt 0:03:14]} 28. Bf4 {[%emt 0:01:10]} Rab8 {[%emt 0:04:03]} 29. Bxe5 {[%emt 0:01:48]} dxe5 {[%emt 0:00:03]} 30. Rxa5 {[%emt 0:00:30]} Rxb2 {[%emt 0:04:58]} 31. Rxb2 {[%emt 0:00:21]} Qxb2 {[%emt 0:00:02]} 32. Ra7 {[%emt 0:00:12]} Re6 {[%emt 0:03:06]} 33. Qd8+ {[%emt 0:04:17]} Kh7 {[%emt 0:00:16]} 34. Rxf7 {[%emt 0:00:02]} Qxc3 {[%emt 0:00:29]} 35. Qg5 {[%emt 0:00:10]} Qc6+ {[%emt 0:00:55]} 36. Kg1 {[%emt 0:00:02]} Rg6 {[%emt 0:01:07]} 37. Qxh5+ {[%emt 0:00:37]} Kg8 {[%emt 0:00:11]} 38. Re7 {[%emt 0:03:38]} Qc1+ {[%emt 0:00:33]} 39. Kg2 {[%emt 0:00:01]} Qc6+ {[%emt 0:00:15]} 40. Qf3 {[%emt 0:00:00]} Qxf3+ {[%emt 0:00:00]} 41. Kxf3 {[%emt 0:00:27]} Rf6+ {[%emt 0:01:17]} 42. Ke3 {[%emt 0:00:39]} Rf5 {[%emt 0:06:22]} 43. f3 {[%emt 0:02:47]} Kf8 {[%emt 0:01:08]} 44. Ra7 {[%emt 0:00:07]} Rh5 {[%emt 0:03:25]} 45. h4 {[%emt 0:00:17]} g5 {[%emt 0:01:04]} 46. hxg5 {[%emt 0:00:12]} Rxg5 {[%emt 0:00:03]} 47. g4 {[%emt 0:00:07]} Rg6 {[%emt 0:00:52]} 48. Ke4 {[%emt 0:00:38]} Rf6 {[%emt 0:00:22]} 49. Ra5 {[%emt 0:01:28]} Rf4+ {[%emt 0:00:11]} 50. Ke3 {[%emt 0:00:08]} Rb4 {[%emt 0:00:16]} 51. Rxe5 {[%emt 0:00:08]} Kf7 {[%emt 0:00:08]} 52. Ra5 {[%emt 0:01:01]} Kf6 {[%emt 0:00:10]} 53. Kf2 {[%emt 0:00:31]} Kg6 {[%emt 0:00:14]} 54. Kg3 {[%emt 0:00:05]} Rc4 {[%emt 0:00:44]} 1-0

[Event "Najdorf Memorial-A 2022"]
[Site "Warsaw"]
[Date "2022.07.11"]
[Round "3.15"]
[White "Sriram, Jha"]
[Black "Niezhentsev, Kyrylo"]
[Result "1/2-1/2"]
[ECO "E15"]
[WhiteElo "2361"]
[BlackElo "1721"]
[Annotator "ChessBase"]
[PlyCount "168"]
[EventDate "2022.07.09"]
[EventType "swiss"]
[EventCountry "POL"]
[SourceTitle "playchess.com"]
[Source "ChessBase"]
[SourceQuality "1"]
[TimeControl "40/5400+30:1800+30"]

1. d4 {[%emt 0:02:30]} Nf6 {[%emt 0:02:25]} 2. Nf3 {[%emt 0:00:24]} b6 {[%emt 0:00:12]} 3. c4 {[%emt 0:02:09]} e6 {[%emt 0:00:09]} 4. g3 {[%emt 0:00:50]} c6 {[%emt 0:00:16]} 5. Bg2 {[%emt 0:00:46]} d5 {[%emt 0:00:08]} 6. O-O {[%emt 0:00:58]} Be7 {[%emt 0:00:05]} 7. Nbd2 {[%emt 0:07:37]} O-O {[%emt 0:00:43]} 8. Qc2 {[%emt 0:00:05]} c5 {[%emt 0:00:07]} 9. cxd5 {[%emt 0:09:58]} exd5 {[%emt 0:00:31]} 10. dxc5 {[%emt 0:00:25]} bxc5 {[%emt 0:00:02]} 11. Nb3 {[%emt 0:00:36]} Nbd7 {[%emt 0:38:41]} 12. Be3 {[%emt 0:13:06]} Ba6 {[%emt 0:10:32]} 13. Nxc5 {[%emt 0:04:51]} Nxc5 {[%emt 0:03:20]} 14. Bxc5 {[%emt 0:01:11]} Bxc5 {[%emt 0:01:08]} 15. Qxc5 {[%emt 0:00:03]} Bxe2 {[%emt 0:00:16]} 16. Rfe1 {[%emt 0:00:22]} Bxf3 {[%emt 0:01:07]} 17. Bxf3 {[%emt 0:00:02]} Qb6 {[%emt 0:03:16]} 18. Qxb6 {[%emt 0:03:04]} axb6 {[%emt 0:00:11]} 19. Red1 {[%emt 0:03:34]} Rfd8 {[%emt 0:02:56]} 20. Rd4 {[%emt 0:00:53]} Rac8 {[%emt 0:01:32]} 21. Rad1 {[%emt 0:00:19]} Rc7 {[%emt 0:01:34]} 22. R4d3 {[%emt 0:07:36]} Rcd7 {[%emt 0:03:54]} 23. Rb3 {[%emt 0:00:14]} Rd6 {[%emt 0:01:46]} 24. Rd4 {[%emt 0:00:03]} Rc8 {[%emt 0:02:37]} 25. Rbd3 {[%emt 0:02:09]} Kf8 {[%emt 0:00:40]} 26. a4 {[%emt 0:01:07]} Rd7 {[%emt 0:02:15]} 27. Rb3 {[%emt 0:06:40]} Rd6 {[%emt 0:00:05]} 28. Rbd3 {[%emt 0:10:10]} Rd7 {[%emt 0:00:12]} 29. Bg4 {[%emt 0:09:03]} Nxg4 {[%emt 0:00:25]} 30. Rxg4 {[%emt 0:00:01]} Rc2 {[%emt 0:01:39]} 31. b4 {[%emt 0:02:29]} Ra2 {[%emt 0:07:45]} 32. b5 {[%emt 0:00:36]} g6 {[%emt 0:01:47]} 33. Rgd4 {[%emt 0:03:31]} Ke7 {[%emt 0:00:06]} 34. Kg2 {[%emt 0:00:44]} h5 {[%emt 0:00:57]} 35. Rc3 {[%emt 0:00:52]} Ke6 {[%emt 0:03:55]} 36. Kf3 {[%emt 0:02:52]} Ke5 {[%emt 0:02:48]} 37. Rcd3 {[%emt 0:02:03]} Rd6 {[%emt 0:06:03]} 38. Rf4 {[%emt 0:00:19]} f5 {[%emt 0:00:04]} 39. Re3+ {[%emt 0:00:36]} Kf6 {[%emt 0:00:01]} 40. Rd4 {[%emt 0:00:00]} Re6 {[%emt 0:00:00]} 41. Rxd5 {[%emt 0:03:56]} Rxa4 {[%emt 0:03:40]} 42. Rd8 {[%emt 0:03:15]} Rxe3+ {[%emt 0:11:41]} 43. Kxe3 {[%emt 0:01:40]} Re4+ {[%emt 0:00:28]} 44. Kd3 {[%emt 0:00:21]} Ke7 {[%emt 0:03:48]} 45. Rb8 {[%emt 0:01:32]} Re6 {[%emt 0:00:19]} 46. f4 {[%emt 0:09:01]} Rd6+ {[%emt 0:01:24]} 47. Kc4 {[%emt 0:00:04]} Kd7 {[%emt 0:00:37]} 48. Rg8 {[%emt 0:00:40]} Re6 {[%emt 0:00:46]} 49. Kd5 {[%emt 0:01:53]} Rd6+ {[%emt 0:00:01]} 50. Kc4 {[%emt 0:00:35]} Re6 {[%emt 0:00:01]} 51. Ra8 {[%emt 0:01:31]} Rd6 {[%emt 0:03:55]} 52. Rg8 {[%emt 0:01:31]} Re6 {[%emt 0:00:15]} 53. Ra8 {[%emt 0:07:09]} Rd6 {[%emt 0:00:23]} 54. Ra7+ {[%emt 0:00:01]} Ke6 {[%emt 0:00:15]} 55. Rg7 {[%emt 0:02:35]} Kf6 {[%emt 0:00:03]} 56. Rc7 {[%emt 0:00:05]} Ke6 {[%emt 0:00:25]} 57. Rb7 {[%emt 0:00:57]} Kf6 {[%emt 0:00:37]} 58. Ra7 {[%emt 0:01:30]} Ke6 {[%emt 0:00:12]} 59. Ra2 {[%emt 0:00:38]} Ke7 {[%emt 0:01:49]} 60. Ra3 {[%emt 0:01:15]} Ke6 {[%emt 0:00:54]} 61. Ra1 {[%emt 0:01:13]} Ke7 {[%emt 0:00:16]} 62. Re1+ {[%emt 0:00:18]} Kf6 {[%emt 0:00:17]} 63. Re8 {[%emt 0:00:51]} Kf7 {[%emt 0:00:15]} 64. Re2 {[%emt 0:01:00]} Kf6 {[%emt 0:00:07]} 65. Ra2 {[%emt 0:00:10]} Ke6 {[%emt 0:00:06]} 66. Ra8 {[%emt 0:00:42]} Ke7 {[%emt 0:00:26]} 67. Rc8 {[%emt 0:00:51]} Kf7 {[%emt 0:00:25]} 68. Rc7+ {[%emt 0:00:44]} Ke6 {[%emt 0:00:13]} 69. Rb7 {[%emt 0:00:39]} Kf6 {[%emt 0:00:06]} 70. Ra7 {[%emt 0:00:35]} Ke6 {[%emt 0:00:05]} 71. Ra2 {[%emt 0:00:08]} Ke7 {[%emt 0:00:09]} 72. Re2+ {[%emt 0:00:10]} Kf6 {[%emt 0:00:12]} 73. Kc3 {[%emt 0:00:41]} Kf7 {[%emt 0:00:07]} 74. Kc4 {[%emt 0:00:46]} Kf6 {[%emt 0:00:06]} 75. Ra2 {[%emt 0:00:09]} Ke7 {[%emt 0:00:06]} 76. Re2+ {[%emt 0:00:34]} Kf6 {[%emt 0:00:05]} 77. Ra2 {[%emt 0:00:09]} Ke7 {[%emt 0:00:04]} 78. Ra7+ {[%emt 0:00:27]} Ke6 {[%emt 0:00:05]} 79. Rc7 {[%emt 0:00:38]} Kf6 {[%emt 0:00:04]} 80. Rc6 {[%emt 0:00:51]} Ke6 {[%emt 0:00:09]} 81. Rc7 {[%emt 0:00:43]} Kf6 {[%emt 0:00:06]} 82. Rc6 {[%emt 0:00:27]} Ke6 {[%emt 0:00:04]} 83. Rc7 {[%emt 0:00:04]} Kf6 {[%emt 0:00:04]} 84. Rc6 {[%emt 0:00:04]} Ke6 {[%emt 0:00:03]} 1/2-1/2

[Event "Najdorf Memorial-A 2022"]
[Site "Warsaw"]
[Date "2022.07.11"]
[Round "3.15"]
[White "Sacharewicz, Krzysztof"]
[Black "Harazinska, Magdalena"]
[Result "1/2-1/2"]
[ECO "B40"]
[WhiteElo "1832"]
[BlackElo "1976"]
[Annotator "ChessBase"]
[PlyCount "78"]
[EventDate "2022.07.09"]
[EventType "swiss"]
[EventCountry "POL"]
[SourceTitle "playchess.com"]
[Source "ChessBase"]
[SourceQuality "1"]
[TimeControl "40/5400+30:1800+30"]

1. e4 {[%emt 0:00:06]} c5 {[%emt 0:00:04]} 2. Nf3 {[%emt 0:00:03]} e6 {[%emt 0:00:04]} 3. c3 {[%emt 0:00:42]} Nf6 {[%emt 0:00:52]} 4. e5 {[%emt 0:01:53]} Nd5 {[%emt 0:00:01]} 5. d4 {[%emt 0:00:06]} cxd4 {[%emt 0:00:04]} 6. cxd4 {[%emt 0:00:02]} Nc6 {[%emt 0:02:03]} 7. Nc3 {[%emt 0:02:18]} d6 {[%emt 0:00:58]} 8. Nxd5 {[%emt 0:02:59]} exd5 {[%emt 0:00:03]} 9. exd6 {[%emt 0:02:25]} Bxd6 {[%emt 0:00:56]} 10. Be2 {[%emt 0:00:02]} O-O {[%emt 0:01:17]} 11. O-O {[%emt 0:00:34]} Bf5 {[%emt 0:04:38]} 12. Be3 {[%emt 0:02:37]} Rc8 {[%emt 0:04:13]} 13. Rc1 {[%emt 0:01:43]} Qb6 {[%emt 0:03:05]} 14. Bd3 {[%emt 0:04:42]} Bxd3 {[%emt 0:05:59]} 15. Qxd3 {[%emt 0:00:01]} Qxb2 {[%emt 0:02:38]} 16. Rb1 {[%emt 0:01:52]} Qxa2 {[%emt 0:02:51]} 17. Rxb7 {[%emt 0:00:02]} Nb4 {[%emt 0:10:39]} 18. Qf5 {[%emt 0:02:54]} Qa6 {[%emt 0:06:48]} 19. Ng5 {[%emt 0:03:17]} g6 {[%emt 0:02:40]} 20. Qh3 {[%emt 0:00:02]} h5 {[%emt 0:00:46]} 21. Nxf7 {[%emt 0:03:50]} Bxh2+ {[%emt 0:06:29]} 22. Qxh2 {[%emt 0:00:57]} Qxb7 {[%emt 0:00:23]} 23. Nd6 {[%emt 0:01:58]} Qc7 {[%emt 0:02:26]} 24. Nxc8 {[%emt 0:12:26]} Qxh2+ {[%emt 0:00:48]} 25. Kxh2 {[%emt 0:00:03]} Rxc8 {[%emt 0:00:01]} 26. Ra1 {[%emt 0:00:21]} Rc7 {[%emt 0:06:24]} 27. Ra5 {[%emt 0:01:55]} Rd7 {[%emt 0:02:36]} 28. Kg3 {[%emt 0:02:32]} Kf7 {[%emt 0:01:17]} 29. Rb5 {[%emt 0:03:16]} Nc2 {[%emt 0:02:57]} 30. Rb8 {[%emt 0:01:42]} Nxe3 {[%emt 0:03:53]} 31. fxe3 {[%emt 0:00:03]} g5 {[%emt 0:06:58]} 32. Kf3 {[%emt 0:02:18]} Kf6 {[%emt 0:03:52]} 33. Rh8 {[%emt 0:01:04]} Kg6 {[%emt 0:03:36]} 34. Rg8+ {[%emt 0:00:58]} Kf6 {[%emt 0:01:01]} 35. Rh8 {[%emt 0:00:17]} h4 {[%emt 0:00:13]} 36. Kg4 {[%emt 0:01:42]} Rg7 {[%emt 0:08:01]} 37. Rh6+ {[%emt 0:01:09]} Rg6 {[%emt 0:00:23]} 38. Rh7 {[%emt 0:00:01]} Rg7 {[%emt 0:00:25]} 39. Rh6+ {[%emt 0:00:03]} Rg6 {[%emt 0:00:13]} 1/2-1/2

[Event "Najdorf Memorial-A 2022"]
[Site "Warsaw"]
[Date "2022.07.11"]
[Round "3.16"]
[White "Fiedorek, Michal"]
[Black "Jedrusik, Adam"]
[Result "0-1"]
[ECO "B07"]
[WhiteElo "2289"]
[BlackElo "1960"]
[Annotator "ChessBase"]
[PlyCount "98"]
[EventDate "2022.07.09"]
[EventType "swiss"]
[EventCountry "POL"]
[SourceTitle "playchess.com"]
[Source "ChessBase"]
[SourceQuality "1"]
[TimeControl "40/5400+30:1800+30"]

1. e4 {[%emt 0:00:07]} d6 {[%emt 0:00:03]} 2. d4 {[%emt 0:00:12]} Nf6 {[%emt 0:00:02]} 3. Nc3 {[%emt 0:00:12]} g6 {[%emt 0:00:04]} 4. Be3 {[%emt 0:00:50]} c6 {[%emt 0:00:04]} 5. f3 {[%emt 0:00:30]} Nbd7 {[%emt 0:00:06]} 6. Qd2 {[%emt 0:00:10]} b5 {[%emt 0:00:01]} 7. g4 {[%emt 0:02:35]} Bg7 {[%emt 0:00:07]} 8. Bh6 {[%emt 0:01:09]} Bxh6 {[%emt 0:01:37]} 9. Qxh6 {[%emt 0:00:07]} Qc7 {[%emt 0:04:54]} 10. O-O-O {[%emt 0:04:34]} e5 {[%emt 0:04:49]} 11. dxe5 {[%emt 0:07:18]} dxe5 {[%emt 0:00:02]} 12. Qg7 {[%emt 0:07:59]} Rf8 {[%emt 0:01:03]} 13. Nh3 {[%emt 0:07:28]} Qb6 {[%emt 0:07:16]} 14. Qh6 {[%emt 0:08:55]} Ba6 {[%emt 0:10:47]} 15. Rd6 {[%emt 0:09:00]} Qc7 {[%emt 0:12:50]} 16. Rd2 {[%emt 0:04:40]} b4 {[%emt 0:03:47]} 17. Na4 {[%emt 0:08:09]} Bb5 {[%emt 0:01:15]} 18. b3 {[%emt 0:04:54]} Qa5 {[%emt 0:03:39]} 19. Qh4 {[%emt 0:06:03]} Rd8 {[%emt 0:10:01]} 20. Bg2 {[%emt 0:12:59]} Bxa4 {[%emt 0:08:35]} 21. bxa4 {[%emt 0:00:05]} Ke7 {[%emt 0:00:02]} 22. Rhd1 {[%emt 0:02:46]} Nc5 {[%emt 0:00:29]} 23. Qg5 {[%emt 0:05:40]} Ne6 {[%emt 0:01:24]} 24. Qe3 {[%emt 0:01:36]} Rxd2 {[%emt 0:03:14]} 25. Rxd2 {[%emt 0:01:04]} Qxa4 {[%emt 0:00:09]} 26. Kb1 {[%emt 0:01:18]} Nd4 {[%emt 0:03:06]} 27. Bf1 {[%emt 0:00:31]} Rb8 {[%emt 0:06:59]} 28. g5 {[%emt 0:02:45]} Nd7 {[%emt 0:00:24]} 29. Bc4 {[%emt 0:00:48]} Nc5 {[%emt 0:01:36]} 30. Rxd4 {[%emt 0:00:28]} exd4 {[%emt 0:00:05]} 31. Qxd4 {[%emt 0:00:05]} Nd7 {[%emt 0:01:51]} 32. e5 {[%emt 0:00:43]} b3 {[%emt 0:01:19]} 33. Qd6+ {[%emt 0:00:40]} Kd8 {[%emt 0:00:09]} 34. axb3 {[%emt 0:00:36]} Qb4 {[%emt 0:00:12]} 35. Qd3 {[%emt 0:00:33]} Qe1+ {[%emt 0:00:19]} 36. Ka2 {[%emt 0:00:18]} Qxe5 {[%emt 0:00:24]} 37. f4 {[%emt 0:00:20]} Qa5+ {[%emt 0:00:33]} 38. Kb2 {[%emt 0:00:06]} Kc7 {[%emt 0:00:32]} 39. Qe3 {[%emt 0:00:32]} Qc5 {[%emt 0:01:43]} 40. Qe4 {[%emt 0:00:00]} f5 {[%emt 0:00:00]} 41. gxf6 {[%emt 0:04:02]} Nxf6 {[%emt 0:03:17]} 42. Qe1 {[%emt 0:03:08]} Re8 {[%emt 0:02:44]} 43. Qc3 {[%emt 0:04:41]} Nd5 {[%emt 0:01:41]} 44. Qg7+ {[%emt 0:03:46]} Re7 {[%emt 0:00:08]} 45. Qh8 {[%emt 0:00:05]} Ne3 {[%emt 0:00:58]} 46. Bd3 {[%emt 0:00:41]} Nd1+ {[%emt 0:00:33]} 47. Ka2 {[%emt 0:02:20]} Qa5+ {[%emt 0:00:34]} 48. Kb1 {[%emt 0:00:04]} Nc3+ {[%emt 0:00:38]} 49. Kb2 {[%emt 0:00:06]} Qa2+ {[%emt 0:00:08]} 0-1

[Event "Najdorf Memorial-A 2022"]
[Site "Warsaw"]
[Date "2022.07.11"]
[Round "3.16"]
[White "Hertlein, Irena"]
[Black "Pettersson, Alexander"]
[Result "1-0"]
[ECO "B12"]
[WhiteElo "1850"]
[BlackElo "1968"]
[Annotator "ChessBase"]
[PlyCount "41"]
[EventDate "2022.07.09"]
[EventType "swiss"]
[EventCountry "POL"]
[SourceTitle "playchess.com"]
[Source "ChessBase"]
[SourceQuality "1"]
[TimeControl "40/5400+30:1800+30"]

1. e4 {[%emt 0:00:03]} c6 {[%emt 0:10:37]} 2. d4 {[%emt 0:00:07]} d5 {[%emt 0:00:08]} 3. e5 {[%emt 0:00:05]} c5 {[%emt 0:00:14]} 4. dxc5 {[%emt 0:00:06]} e6 {[%emt 0:01:13]} 5. Nf3 {[%emt 0:00:15]} Bxc5 {[%emt 0:00:49]} 6. a3 {[%emt 0:00:18]} Ne7 {[%emt 0:00:50]} 7. b4 {[%emt 0:00:31]} Bb6 {[%emt 0:00:05]} 8. Bb2 {[%emt 0:00:32]} O-O {[%emt 0:01:14]} 9. Bd3 {[%emt 0:00:41]} a5 {[%emt 0:06:05]} 10. Bxh7+ {[%emt 0:15:56]} Kxh7 {[%emt 0:09:44]} 11. Ng5+ {[%emt 0:00:26]} Kg8 {[%emt 0:06:13]} 12. Qh5 {[%emt 0:00:18]} Re8 {[%emt 0:00:28]} 13. Qxf7+ {[%emt 0:07:29]} Kh8 {[%emt 0:00:12]} 14. Qh5+ {[%emt 0:07:51]} Kg8 {[%emt 0:00:03]} 15. Qf7+ {[%emt 0:15:09]} Kh8 {[%emt 0:01:32]} 16. h4 {[%emt 0:10:40]} Nf5 {[%emt 0:13:14]} 17. g4 {[%emt 0:07:40]} Nd4 {[%emt 0:19:55]} 18. Qh5+ {[%emt 0:01:09]} Kg8 {[%emt 0:00:05]} 19. Qh7+ {[%emt 0:00:18]} Kf8 {[%emt 0:00:19]} 20. Qh8+ {[%emt 0:00:17]} Ke7 {[%emt 0:00:08]} 21. Qxg7# {[%emt 0:00:07]} 1-0

[Event "Najdorf Memorial-A 2022"]
[Site "Warsaw"]
[Date "2022.07.11"]
[Round "3.17"]
[White "Siekanska, Maria"]
[Black "Adamski, Adam"]
[Result "1-0"]
[ECO "D86"]
[WhiteElo "1964"]
[BlackElo "1784"]
[Annotator "ChessBase"]
[PlyCount "71"]
[EventDate "2022.07.09"]
[EventType "swiss"]
[EventCountry "POL"]
[SourceTitle "playchess.com"]
[Source "ChessBase"]
[SourceQuality "1"]
[TimeControl "40/5400+30:1800+30"]

1. d4 {[%emt 0:00:01]} Nf6 {[%emt 0:00:06]} 2. c4 {[%emt 0:00:06]} g6 {[%emt 0:00:05]} 3. Nc3 {[%emt 0:00:04]} d5 {[%emt 0:00:05]} 4. cxd5 {[%emt 0:00:05]} Nxd5 {[%emt 0:00:04]} 5. e4 {[%emt 0:00:06]} Nxc3 {[%emt 0:00:04]} 6. bxc3 {[%emt 0:00:06]} Bg7 {[%emt 0:00:04]} 7. Bc4 {[%emt 0:00:10]} c5 {[%emt 0:00:30]} 8. Ne2 {[%emt 0:00:09]} Nc6 {[%emt 0:00:35]} 9. Be3 {[%emt 0:00:14]} O-O {[%emt 0:00:42]} 10. O-O {[%emt 0:00:09]} Bg4 {[%emt 0:00:15]} 11. f3 {[%emt 0:03:17]} Na5 {[%emt 0:02:38]} 12. Bd3 {[%emt 0:04:03]} Bd7 {[%emt 0:06:13]} 13. Qd2 {[%emt 0:04:45]} Qc7 {[%emt 0:08:39]} 14. Rac1 {[%emt 0:02:58]} Rfd8 {[%emt 0:05:26]} 15. Bh6 {[%emt 0:04:48]} Bh8 {[%emt 0:06:32]} 16. h4 {[%emt 0:02:45]} c4 {[%emt 0:10:14]} 17. Bb1 {[%emt 0:01:31]} e5 {[%emt 0:06:38]} 18. f4 {[%emt 0:09:33]} Bg4 {[%emt 0:07:26]} 19. fxe5 {[%emt 0:01:53]} Bxe5 {[%emt 0:03:28]} 20. Nf4 {[%emt 0:00:53]} Be6 {[%emt 0:11:02]} 21. Nxe6 {[%emt 0:04:01]} fxe6 {[%emt 0:00:02]} 22. Qg5 {[%emt 0:01:10]} Bg7 {[%emt 0:01:02]} 23. Bxg7 {[%emt 0:00:46]} Kxg7 {[%emt 0:01:00]} 24. h5 {[%emt 0:05:57]} e5 {[%emt 0:01:38]} 25. Qf6+ {[%emt 0:04:05]} Kg8 {[%emt 0:02:05]} 26. hxg6 {[%emt 0:00:36]} Rf8 {[%emt 0:01:58]} 27. Qe6+ {[%emt 0:03:35]} Kg7 {[%emt 0:00:47]} 28. Rf7+ {[%emt 0:01:01]} Rxf7 {[%emt 0:00:03]} 29. gxf7 {[%emt 0:00:08]} Rf8 {[%emt 0:02:01]} 30. Rf1 {[%emt 0:00:20]} Rxf7 {[%emt 0:00:45]} 31. Rxf7+ {[%emt 0:00:32]} Qxf7 {[%emt 0:00:04]} 32. Qxe5+ {[%emt 0:00:12]} Kh6 {[%emt 0:00:16]} 33. Qxa5 {[%emt 0:02:34]} Qf4 {[%emt 0:00:09]} 34. Qf5 {[%emt 0:00:23]} Qe3+ {[%emt 0:02:14]} 35. Kh2 {[%emt 0:00:36]} Qc1 {[%emt 0:00:10]} 36. e5 {[%emt 0:00:17]} 1-0

[Event "Najdorf Memorial-A 2022"]
[Site "Warsaw"]
[Date "2022.07.11"]
[Round "3.17"]
[White "Vanduyfhuys, Igor"]
[Black "Mickiewicz, Piotr"]
[Result "0-1"]
[ECO "B84"]
[WhiteElo "1959"]
[BlackElo "2284"]
[Annotator "ChessBase"]
[PlyCount "110"]
[EventDate "2022.07.09"]
[EventType "swiss"]
[EventCountry "POL"]
[SourceTitle "playchess.com"]
[Source "ChessBase"]
[SourceQuality "1"]
[TimeControl "40/5400+30:1800+30"]

1. e4 {[%emt 0:00:01]} c5 {[%emt 0:06:31]} 2. Nf3 {[%emt 0:00:03]} d6 {[%emt 0:00:55]} 3. d4 {[%emt 0:00:03]} cxd4 {[%emt 0:00:11]} 4. Nxd4 {[%emt 0:00:04]} Nf6 {[%emt 0:00:12]} 5. Nc3 {[%emt 0:00:04]} a6 {[%emt 0:00:03]} 6. Be2 {[%emt 0:00:11]} e6 {[%emt 0:00:20]} 7. Be3 {[%emt 0:00:37]} Qc7 {[%emt 0:06:30]} 8. Qd2 {[%emt 0:08:20]} b5 {[%emt 0:00:43]} 9. f3 {[%emt 0:01:04]} Nbd7 {[%emt 0:12:31]} 10. g4 {[%emt 0:07:50]} h6 {[%emt 0:09:09]} 11. h4 {[%emt 0:07:53]} b4 {[%emt 0:04:41]} 12. Nd1 {[%emt 0:00:37]} d5 {[%emt 0:00:32]} 13. Rg1 {[%emt 0:04:47]} dxe4 {[%emt 0:12:08]} 14. g5 {[%emt 0:03:23]} hxg5 {[%emt 0:00:04]} 15. hxg5 {[%emt 0:00:04]} Nd5 {[%emt 0:00:07]} 16. fxe4 {[%emt 0:01:19]} Nxe3 {[%emt 0:00:58]} 17. Nxe3 {[%emt 0:01:25]} Ne5 {[%emt 0:16:47]} 18. O-O-O {[%emt 0:03:41]} Bb7 {[%emt 0:09:09]} 19. Nf3 {[%emt 0:15:57]} Nxf3 {[%emt 0:05:54]} 20. Bxf3 {[%emt 0:00:06]} Rd8 {[%emt 0:03:44]} 21. Qxd8+ {[%emt 0:02:30]} Qxd8 {[%emt 0:00:03]} 22. Rxd8+ {[%emt 0:00:06]} Kxd8 {[%emt 0:00:04]} 23. Nc4 {[%emt 0:01:19]} Bc5 {[%emt 0:06:40]} 24. Rd1+ {[%emt 0:00:44]} Kc7 {[%emt 0:03:41]} 25. b3 {[%emt 0:00:22]} Rh3 {[%emt 0:00:28]} 26. Rd3 {[%emt 0:02:13]} Rg3 {[%emt 0:00:09]} 27. Ne5 {[%emt 0:01:26]} Rxg5 {[%emt 0:00:06]} 28. Nxf7 {[%emt 0:00:26]} Rg1+ {[%emt 0:00:48]} 29. Kd2 {[%emt 0:00:04]} Be7 {[%emt 0:01:05]} 30. c3 {[%emt 0:02:28]} Ra1 {[%emt 0:00:34]} 31. cxb4 {[%emt 0:00:49]} Rxa2+ {[%emt 0:00:02]} 32. Ke3 {[%emt 0:00:08]} Bxb4 {[%emt 0:00:42]} 33. Nd8 {[%emt 0:01:59]} Bc8 {[%emt 0:00:45]} 34. Bg4 {[%emt 0:00:42]} Bc5+ {[%emt 0:00:36]} 35. Kf3 {[%emt 0:01:17]} Rf2+ {[%emt 0:00:10]} 36. Kg3 {[%emt 0:00:03]} Rf6 {[%emt 0:00:30]} 37. e5 {[%emt 0:00:57]} Rg6 {[%emt 0:00:53]} 38. Nf7 {[%emt 0:00:19]} Bb7 {[%emt 0:00:28]} 39. Nd6 {[%emt 0:01:33]} Bd5 {[%emt 0:00:13]} 40. Rc3 {[%emt 0:00:00]} Kb6 {[%emt 0:00:00]} 41. Nc8+ {[%emt 0:00:39]} Kb5 {[%emt 0:01:06]} 42. Kf4 {[%emt 0:02:55]} Kb4 {[%emt 0:02:50]} 43. Rc1 {[%emt 0:03:02]} Be3+ {[%emt 0:06:47]} 44. Kxe3 {[%emt 0:00:10]} Rxg4 {[%emt 0:00:05]} 45. Nd6 {[%emt 0:01:25]} Rg3+ {[%emt 0:01:45]} 46. Kd4 {[%emt 0:02:09]} a5 {[%emt 0:02:37]} 47. Nc4 {[%emt 0:03:10]} a4 {[%emt 0:03:39]} 48. Nb2 {[%emt 0:01:57]} Kxb3 {[%emt 0:02:53]} 49. Nd3 {[%emt 0:00:04]} a3 {[%emt 0:01:03]} 50. Nc5+ {[%emt 0:02:31]} Kb2 {[%emt 0:00:18]} 51. Rf1 {[%emt 0:00:10]} a2 {[%emt 0:01:38]} 52. Na4+ {[%emt 0:00:12]} Kb3 {[%emt 0:00:32]} 53. Nc5+ {[%emt 0:01:40]} Ka3 {[%emt 0:00:14]} 54. Re1 {[%emt 0:00:17]} Rg4+ {[%emt 0:00:40]} 55. Kd3 {[%emt 0:00:13]} Rb4 {[%emt 0:00:26]} 0-1